[Event "47th GRE-chT 2019"]
[Site "Patra"]
[Date "2019.07.03"]
[Round "2.9"]
[White "Loukisas, Dimitrios"]
[Black "Gavriilidis, Orestis"]
[Result "1-0"]
[ECO "E81"]
[WhiteElo "1898"]
[BlackElo "1906"]
[Annotator "NA"]
[PlyCount "103"]
[EventDate "2019.07.02"]
[EventCountry "GRE"]
[SourceTitle "playchess.com"]
[Source "ChessBase"]
[SourceQuality "1"]
[TimeControl "5400+30"]

1. d4 {[%emt 0:04:07]} Nf6 {[%emt 0:00:00]} 2. c4 {[%emt 0:00:05]} g6 {[%emt 0:00:00]} 3. Nc3 {[%emt 0:00:07]} Bg7 {[%emt 0:00:00]} 4. e4 {[%emt 0:00:09]} d6 {[%emt 0:00:00]} 5. f3 {[%emt 0:00:08]} O-O {[%emt 0:00:08]} 6. Nge2 {[%emt 0:00:38]} c5 {[%emt 0:01:08]} 7. d5 {[%emt 0:04:10]} a6 {[%emt 0:07:43]} 8. a4 {[%emt 0:00:18]} e6 {[%emt 0:02:57]} 9. Be3 {[%emt 0:05:53]} exd5 {[%emt 0:06:22]} 10. cxd5 {[%emt 0:00:12]} Nbd7 {[%emt 0:02:46]} 11. g4 {[%emt 0:02:43]} Ne5 {[%emt 0:03:52]} 12. Ng3 {[%emt 0:00:20]} Qa5 {[%emt 0:12:14]} 13. Be2 $11 {[%emt 0:03:56]} Qb4 {[%emt 0:02:26]} 14. Qd2 {[%emt 0:00:46]} Nc4 {[%emt 0:08:01]} 15. Bxc4 {[%emt 0:00:55]} Qxc4 {[%emt 0:00:06]} 16. h4 {[%emt 0:01:00]} Bxg4 {[%emt 0:08:10]} 17. fxg4 {[%emt 0:01:06]} Nxg4 {[%emt 0:00:03]} 18. Nd1 {[%emt 0:05:23]} Ne5 {[%emt 0:02:31]} 19. Qe2 {[%emt 0:01:39]} Nd3+ {[%emt 0:02:25]} 20. Kd2 {[%emt 0:02:33]} Nxb2 {[%emt 0:01:00]} 21. Nxb2 {[%emt 0:00:28]} Qc3+ {[%emt 0:03:52]} 22. Kd1 {[%emt 0:00:10]} Qxb2 {[%emt 0:00:46]} 23. Qxb2 {[%emt 0:00:07]} Bxb2 {[%emt 0:00:03]} 24. Rb1 {[%emt 0:00:25]} Be5 {[%emt 0:00:05]} 25. Nf1 {[%emt 0:00:28]} Rab8 {[%emt 0:10:11]} 26. Rb6 {[%emt 0:01:33]} f5 {[%emt 0:03:48]} 27. exf5 {[%emt 0:01:27]} Rxf5 {[%emt 0:00:16]} 28. Nd2 {[%emt 0:01:29]} Kf7 {[%emt 0:01:09]} 29. Ke2 {[%emt 0:02:34]} Bf4 {[%emt 0:05:53]} 30. Bxf4 {[%emt 0:02:48]} Rxf4 {[%emt 0:00:04]} 31. Rf1 {[%emt 0:02:22]} Re8+ {[%emt 0:01:50]} 32. Kd3 {[%emt 0:00:09]} Rxf1 {[%emt 0:02:37]} 33. Nxf1 {[%emt 0:00:06]} Re5 {[%emt 0:00:59]} 34. Rxb7+ {[%emt 0:00:19]} Kf6 {[%emt 0:01:15]} 35. Ne3 {[%emt 0:00:13]} Rh5 {[%emt 0:00:26]} 36. Rb6 {[%emt 0:01:22]} Rxh4 {[%emt 0:01:16]} 37. Rxd6+ {[%emt 0:00:27]} Ke7 {[%emt 0:01:14]} 38. Rxa6 {[%emt 0:00:10]} Rd4+ {[%emt 0:01:03]} 39. Ke2 {[%emt 0:00:15]} h5 {[%emt 0:00:53]} 40. a5 {[%emt 0:00:00]} Ra4 {[%emt 0:00:00]} 41. Rxg6 {[%emt 0:00:00]} Rxa5 {[%emt 0:00:00]} 42. Rh6 {[%emt 0:00:00]} Ra2+ {[%emt 0:00:00]} 43. Kd3 {[%emt 0:00:00]} Rh2 {[%emt 0:00:00]} 44. Kc4 {[%emt 0:00:00]} Ke8 {[%emt 0:00:00]} 45. Kxc5 {[%emt 0:00:00]} h4 {[%emt 0:00:00]} 46. Kd6 {[%emt 0:00:00]} h3 {[%emt 0:00:00]} 47. Ke6 {[%emt 0:00:00]} Kf8 {[%emt 0:00:00]} 48. d6 {[%emt 0:00:00]} Kg7 {[%emt 0:00:00]} 49. Nf5+ {[%emt 0:00:00]} Kg8 {[%emt 0:00:00]} 50. d7 {[%emt 0:00:00]} Re2+ {[%emt 0:00:00]} 51. Kf6 {[%emt 0:00:00]} Rd2 {[%emt 0:00:00]} 52. Ne7+ {[%emt 0:00:00]} 1-0

[Event "47th GRE-chT 2019"]
[Site "Patra"]
[Date "2019.07.03"]
[Round "2.10"]
[White "Dristellas, Neoklis"]
[Black "Giannoulis, Grigorios"]
[Result "0-1"]
[ECO "C56"]
[WhiteElo "1577"]
[BlackElo "1447"]
[Annotator "NA"]
[PlyCount "59"]
[EventDate "2019.07.02"]
[EventCountry "GRE"]
[SourceTitle "playchess.com"]
[Source "ChessBase"]
[SourceQuality "1"]
[TimeControl "5400+30"]

1. e4 {[%emt 0:00:47]} e5 {[%emt 0:00:00]} 2. Nf3 {[%emt 0:00:21]} Nc6 {[%emt 0:00:00]} 3. d4 {[%emt 0:00:13]} exd4 {[%emt 0:00:00]} 4. Bc4 {[%emt 0:00:12]} Nf6 {[%emt 0:00:00]} 5. e5 {[%emt 0:00:06]} d5 {[%emt 0:00:00]} 6. Bb5 {[%emt 0:00:10]} Ne4 {[%emt 0:00:11]} 7. Nxd4 {[%emt 0:00:10]} Bc5 {[%emt 0:10:38]} 8. Be3 {[%emt 0:03:20]} Bxd4 {[%emt 0:04:37]} 9. Bxd4 {[%emt 0:07:17]} O-O {[%emt 0:05:20]} 10. Bxc6 {[%emt 0:03:37]} bxc6 {[%emt 0:06:17]} 11. Nd2 {[%emt 0:01:21]} Nxd2 {[%emt 0:00:24]} 12. Qxd2 {[%emt 0:08:10]} Re8 {[%emt 0:01:38]} 13. O-O {[%emt 0:05:17]} Bf5 {[%emt 0:04:26]} 14. Rfe1 {[%emt 0:03:28]} Re6 {[%emt 0:04:09]} 15. f3 {[%emt 0:04:58]} a6 {[%emt 0:05:26]} 16. Re3 {[%emt 0:03:56]} Qh4 {[%emt 0:08:11]} 17. Qf2 {[%emt 0:00:37]} Qxd4 {[%emt 0:00:36]} 18. c3 {[%emt 0:00:57]} Qc5 {[%emt 0:02:41]} 19. g4 {[%emt 0:02:54]} Rg6 {[%emt 0:02:52]} 20. Kh1 {[%emt 0:01:58]} Bd7 {[%emt 0:03:05]} 21. h3 {[%emt 0:05:48]} Re8 {[%emt 0:02:43]} 22. Rae1 {[%emt 0:02:15]} Rge6 {[%emt 0:03:54]} 23. f4 {[%emt 0:01:20]} f6 {[%emt 0:02:19]} 24. b4 {[%emt 0:09:37]} Qf8 {[%emt 0:03:21]} 25. g5 {[%emt 0:03:55]} fxe5 {[%emt 0:01:36]} 26. f5 {[%emt 0:08:11]} Rg6 {[%emt 0:04:04]} 27. h4 {[%emt 0:00:50]} Bxf5 {[%emt 0:00:54]} 28. Rf3 {[%emt 0:15:05]} Be4 29. Ree3 {[%emt 2:57:59]} Bxf3+ 30. Rxf3 {[%emt 0:00:00]} 0-1

[Event "47th GRE-chT 2019"]
[Site "Patra"]
[Date "2019.07.03"]
[Round "2.10"]
[White "Kapia, Aggeliki"]
[Black "Souchleris, Nikolaos"]
[Result "0-1"]
[ECO "A46"]
[WhiteElo "1168"]
[BlackElo "1204"]
[Annotator "NA"]
[PlyCount "78"]
[EventDate "2019.07.02"]
[EventCountry "GRE"]
[SourceTitle "playchess.com"]
[Source "ChessBase"]
[SourceQuality "1"]
[TimeControl "5400+30"]

1. d4 {[%emt 0:00:00]} Nf6 {[%emt 0:00:00]} 2. Nf3 {[%emt 0:00:00]} e6 {[%emt 0:00:00]} 3. e3 {[%emt 0:00:00]} b6 {[%emt 0:00:00]} 4. Bd3 {[%emt 0:00:04]} Bb7 {[%emt 0:00:20]} 5. O-O {[%emt 0:00:18]} Be7 {[%emt 0:00:30]} 6. Nbd2 {[%emt 0:00:33]} O-O {[%emt 0:00:36]} 7. b3 {[%emt 0:00:25]} d6 {[%emt 0:00:42]} 8. Bb2 {[%emt 0:00:35]} Re8 {[%emt 0:01:12]} 9. c4 {[%emt 0:03:22]} Nbd7 {[%emt 0:02:14]} 10. Qe2 {[%emt 0:03:04]} Nf8 {[%emt 0:05:07]} 11. Rac1 {[%emt 0:02:36]} Ng6 {[%emt 0:02:17]} 12. Bb1 {[%emt 0:19:08]} a5 {[%emt 0:09:57]} 13. a3 {[%emt 0:04:14]} a4 {[%emt 0:05:01]} 14. b4 {[%emt 0:00:50]} c5 {[%emt 0:02:53]} 15. dxc5 {[%emt 0:02:32]} dxc5 {[%emt 0:01:47]} 16. b5 {[%emt 0:03:05]} Bd6 {[%emt 0:04:37]} 17. Rfd1 {[%emt 0:01:46]} e5 {[%emt 0:02:48]} 18. Ng5 {[%emt 0:05:22]} Qc7 {[%emt 0:04:34]} 19. Nge4 {[%emt 0:02:12]} Nxe4 {[%emt 0:01:06]} 20. Nxe4 {[%emt 0:01:05]} Red8 {[%emt 0:01:17]} 21. Rd2 {[%emt 0:11:29]} Be7 {[%emt 0:02:46]} 22. Nc3 {[%emt 0:06:26]} Rxd2 {[%emt 0:02:10]} 23. Qxd2 {[%emt 0:00:25]} Nh4 {[%emt 0:00:47]} 24. e4 {[%emt 0:04:13]} Qc8 {[%emt 0:01:58]} 25. Nd5 {[%emt 0:03:30]} Qg4 {[%emt 0:19:41]} 26. Ne3 {[%emt 0:10:57]} Nf3+ {[%emt 0:00:46]} 27. Kh1 {[%emt 0:00:22]} Qxg2+ {[%emt 0:00:25]} 28. Kxg2 {[%emt 0:00:11]} Nxd2 {[%emt 0:00:06]} 29. Nd5 {[%emt 0:02:40]} Nxb1 {[%emt 0:01:40]} 30. Nxe7+ {[%emt 0:05:44]} Kf8 {[%emt 0:00:22]} 31. Nd5 {[%emt 0:00:13]} Nd2 {[%emt 0:01:14]} 32. Nxb6 {[%emt 0:00:46]} Bxe4+ {[%emt 0:01:39]} 33. Kg3 {[%emt 0:00:41]} Rd8 {[%emt 0:03:06]} 34. Rc3 {[%emt 0:04:43]} Bd3 {[%emt 0:03:10]} 35. Rc1 {[%emt 0:00:53]} Rd6 {[%emt 0:00:57]} 36. Nxa4 {[%emt 0:00:36]} Rg6+ {[%emt 0:00:22]} 37. Kh3 {[%emt 0:00:24]} Bf5+ {[%emt 0:00:15]} 38. Kh4 {[%emt 0:00:15]} Nf3+ {[%emt 0:00:11]} 39. Kh5 {[%emt 0:00:22]} Bg4# {[%emt 0:00:06]} 0-1

[Event "47th GRE-chT 2019"]
[Site "Patra"]
[Date "2019.07.03"]
[Round "2.11"]
[White "Mastrovasilis, Dimitrios"]
[Black "David, Alberto"]
[Result "1/2-1/2"]
[ECO "C11"]
[WhiteElo "2589"]
[BlackElo "2553"]
[Annotator "ChessBase"]
[PlyCount "55"]
[EventDate "2019.07.02"]
[EventCountry "GRE"]
[SourceTitle "playchess.com"]
[Source "ChessBase"]
[SourceQuality "1"]
[TimeControl "5400+30"]

1. e4 {[%emt 0:00:00]} e6 {[%emt 0:00:11]} 2. d4 {[%emt 0:00:19]} d5 {[%emt 0:00:07]} 3. Nc3 {[%emt 0:00:25]} Nf6 {[%emt 0:02:50]} 4. e5 {[%emt 0:01:17]} Nfd7 {[%emt 0:00:12]} 5. Nce2 {[%emt 0:00:32]} c5 {[%emt 0:00:47]} 6. c3 {[%emt 0:00:14]} Nc6 {[%emt 0:03:00]} 7. Nf3 {[%emt 0:00:24]} Qa5 {[%emt 0:01:43]} 8. a3 {[%emt 0:03:34]} cxd4 {[%emt 0:00:38]} 9. b4 {[%emt 0:00:28]} Qc7 {[%emt 0:00:37]} 10. cxd4 {[%emt 0:00:17]} b5 {[%emt 0:00:11]} 11. Nf4 {[%emt 0:08:52]} Qb6 {[%emt 0:27:27]} 12. Rb1 {[%emt 0:24:09]} a5 {[%emt 0:00:54]} 13. bxa5 {[%emt 0:01:30]} Rxa5 {[%emt 0:00:48]} 14. Bd2 {[%emt 0:08:38]} Rxa3 {[%emt 0:30:05]} 15. Bxb5 {[%emt 0:03:29]} Ba6 {[%emt 0:01:05]} 16. Bxa6 {[%emt 0:10:37]} Qxa6 {[%emt 0:00:08]} 17. Qe2 {[%emt 0:00:55]} Be7 {[%emt 0:09:15]} 18. Qxa6 {[%emt 0:14:37]} Rxa6 {[%emt 0:00:15]} 19. Nd3 {[%emt 0:00:49]} Nb6 {[%emt 0:06:38]} 20. O-O {[%emt 0:06:55]} O-O {[%emt 0:02:06]} 21. Bb4 {[%emt 0:03:08]} Bxb4 {[%emt 0:03:33]} 22. Nxb4 {[%emt 0:00:08]} Nxb4 {[%emt 0:00:04]} 23. Rxb4 {[%emt 0:00:07]} Nc4 {[%emt 0:00:04]} 24. Rfb1 {[%emt 0:01:51]} h6 {[%emt 0:02:51]} 25. h4 {[%emt 0:01:43]} Ra2 {[%emt 0:01:31]} 26. Rb8 {[%emt 0:02:06]} Nd2 {[%emt 0:01:01]} 27. Rc8 {[%emt 0:00:26]} Re8 28. Rxe8+ {[%emt 0:01:03] Kf8} 1/2-1/2

[Event "47th GRE-chT 2019"]
[Site "Patra"]
[Date "2019.07.03"]
[Round "2.12"]
[White "Theodorou, Nikolas"]
[Black "Mastrovasilis, Athanasios"]
[Result "1/2-1/2"]
[ECO "D10"]
[WhiteElo "2543"]
[BlackElo "2518"]
[Annotator "RC"]
[PlyCount "134"]
[EventDate "2019.07.02"]
[EventCountry "GRE"]
[SourceTitle "playchess.com"]
[Source "ChessBase"]
[SourceQuality "1"]
[TimeControl "5400+30"]

1. d4 {[%emt 0:02:55]} d5 {[%emt 0:00:34]} 2. c4 {[%emt 0:00:30]} c6 {[%emt 0:00:08]} 3. cxd5 {[%emt 0:00:06]} cxd5 {[%emt 0:00:03]} 4. Bg5 {[%emt 0:06:45]} Nc6 {[%emt 0:01:21]} 5. Nc3 {[%emt 0:01:45]} h6 {[%emt 0:01:39]} 6. Bh4 {[%emt 0:11:51]} Nf6 {[%emt 0:00:58]} 7. Bxf6 {[%emt 0:00:02]} gxf6 {[%emt 0:02:54]} 8. e3 {[%emt 0:02:12]} e6 {[%emt 0:08:03]} 9. Nge2 {[%emt 0:03:39]} Bd6 {[%emt 0:07:18]} 10. Qd2 {[%emt 0:05:13]} Bd7 {[%emt 0:18:44]} 11. Nf4 {[%emt 0:21:12]} Bxf4 {[%emt 0:00:30]} 12. exf4 {[%emt 0:00:17]} Qb6 {[%emt 0:00:27]} 13. Rd1 {[%emt 0:03:33]} O-O-O {[%emt 0:06:58]} 14. Be2 {[%emt 0:06:58]} Kb8 {[%emt 0:05:54]} 15. Na4 {[%emt 0:00:54]} Qb4 {[%emt 0:06:17]} 16. Qxb4 {[%emt 0:00:08]} Nxb4 {[%emt 0:00:04]} 17. Nc3 {[%emt 0:06:53]} Nc2+ {[%emt 0:00:50]} 18. Kf1 {[%emt 0:00:25]} Rc8 {[%emt 0:00:51]} 19. Rd2 {[%emt 0:04:21]} Na3 {[%emt 0:00:04]} 20. f3 {[%emt 0:04:21]} Bb5 {[%emt 0:00:21]} 21. Kf2 {[%emt 0:02:22]} Bxe2 {[%emt 0:00:48]} 22. Nxe2 {[%emt 0:01:05]} Nb5 {[%emt 0:04:08]} 23. f5 {[%emt 0:03:49]} Rc4 {[%emt 0:04:28]} 24. b3 {[%emt 0:00:09]} Rc6 {[%emt 0:01:55]} 25. Re1 {[%emt 0:04:04]} Rhc8 {[%emt 0:03:06]} 26. fxe6 {[%emt 0:00:32]} fxe6 {[%emt 0:00:08]} 27. a4 {[%emt 0:03:43]} Nc7 {[%emt 0:00:36]} 28. Nf4 {[%emt 0:01:52]} Re8 {[%emt 0:03:59]} 29. Re3 {[%emt 0:00:06]} Kc8 {[%emt 0:06:03]} 30. Kg3 {[%emt 0:01:54]} Kd7 {[%emt 0:01:29]} 31. Kh4 {[%emt 0:00:17]} Ke7 {[%emt 0:02:00]} 32. Rdd3 {[%emt 0:01:06]} Kf7 {[%emt 0:08:05]} 33. Rc3 {[%emt 0:00:30]} Na6 {[%emt 0:02:50]} 34. Rxc6 {[%emt 0:00:01]} bxc6 {[%emt 0:00:10]} 35. Nd3 {[%emt 0:00:53]} Rb8 {[%emt 0:01:31]} 36. Kh5 {[%emt 0:00:19]} Nb4 {[%emt 0:00:53]} 37. Nc5 {[%emt 0:00:51]} Re8 {[%emt 0:01:02]} 38. Re2 {[%emt 0:00:44]} e5 {[%emt 0:00:58]} 39. dxe5 {[%emt 0:00:20]} fxe5 {[%emt 0:00:00]} 40. Kxh6 {[%emt 0:00:00]} Kf6 {[%emt 0:00:00]} 41. Nd7+ {[%emt 0:00:00]} Kf5 {[%emt 0:00:00]} 42. g4+ {[%emt 0:00:00]} Kf4 {[%emt 0:00:00]} 43. g5 {[%emt 0:00:00]} Kxf3 {[%emt 0:00:00]} 44. Rxe5 {[%emt 0:00:00]} Rh8+ {[%emt 0:00:00]} 45. Kg7 {[%emt 0:00:00]} Rxh2 {[%emt 0:00:00]} 46. g6 {[%emt 0:00:00]} d4 {[%emt 0:00:25]} 47. Re6 {[%emt 0:00:00]} d3 {[%emt 0:00:41]} 48. Ne5+ {[%emt 0:00:42]} Kf4 {[%emt 0:01:00]} 49. Kf6 {[%emt 0:01:21]} d2 {[%emt 0:00:30]} 50. g7 {[%emt 0:02:28]} Nd5+ {[%emt 0:00:02]} 51. Kf7 {[%emt 0:01:37]} d1=Q {[%emt 0:00:07]} 52. g8=Q {[%emt 0:00:14]} Qh5+ {[%emt 0:01:22]} 53. Qg6 {[%emt 0:00:50]} Qf5+ {[%emt 0:02:36]} 54. Qxf5+ {[%emt 0:00:01]} Kxf5 {[%emt 0:00:30]} 55. Nxc6 {[%emt 0:00:39]} Rh7+ {[%emt 0:00:02]} 56. Kg8 {[%emt 0:00:45]} Kxe6 {[%emt 0:00:02]} 57. Kxh7 {[%emt 0:00:39]} Kd6 58. Nxa7 {[%emt 3:14:48]} Kc5 {[%emt 0:01:07]} 59. Nb5 {[%emt 0:00:00]} Kb4 {[%emt 0:01:30]} 60. Nd4 {[%emt 0:00:00]} Nb6 {[%emt 0:00:56]} 61. Nc6+ {[%emt 0:00:00]} Kxb3 {[%emt 0:00:05]} 62. a5 {[%emt 0:00:00]} Na8 {[%emt 0:00:24]} 63. a6 {[%emt 0:00:00]} Kc4 {[%emt 0:00:27]} 64. a7 {[%emt 0:00:00]} Kb5 {[%emt 0:00:11]} 65. Ne7 {[%emt 0:00:00]} Ka6 {[%emt 0:00:04]} 66. Nc8 {[%emt 0:00:00]} Kb7 {[%emt 0:00:04]} 67. Nb6 {[%emt 0:00:00]} Kxa7 {[%emt 0:00:30]} 1/2-1/2

[Event "47th GRE-chT 2019"]
[Site "Patra"]
[Date "2019.07.03"]
[Round "2.12"]
[White "Grivas, Efstratios"]
[Black "Mihailidis, Anastasios"]
[Result "1-0"]
[ECO "A14"]
[WhiteElo "2418"]
[BlackElo "2270"]
[Annotator "NA"]
[PlyCount "85"]
[EventDate "2019.07.02"]
[EventCountry "GRE"]
[SourceTitle "playchess.com"]
[Source "ChessBase"]
[SourceQuality "1"]
[TimeControl "5400+30"]

1. c4 {[%emt 0:00:00]} e6 {[%emt 0:01:26]} 2. g3 {[%emt 0:02:08]} d5 {[%emt 0:01:03]} 3. Bg2 {[%emt 0:00:05]} Nf6 {[%emt 0:00:16]} 4. Nf3 {[%emt 0:00:53]} Be7 {[%emt 0:00:44]} 5. O-O {[%emt 0:00:18]} O-O {[%emt 0:00:03]} 6. b3 {[%emt 0:00:20]} b6 {[%emt 0:03:47]} 7. Bb2 {[%emt 0:04:28]} Bb7 {[%emt 0:00:11]} 8. e3 {[%emt 0:04:19]} c5 {[%emt 0:04:24]} 9. d3 {[%emt 0:01:41]} Nc6 {[%emt 0:01:11]} 10. Nbd2 {[%emt 0:00:41]} Qc7 {[%emt 0:03:39]} 11. Qe2 {[%emt 0:02:53]} Rad8 {[%emt 0:13:07]} 12. a3 {[%emt 0:01:49]} Rfe8 {[%emt 0:05:36]} 13. Rac1 {[%emt 0:03:45]} Qb8 {[%emt 0:06:00]} 14. Rfd1 {[%emt 0:03:47]} e5 {[%emt 0:03:58]} 15. cxd5 {[%emt 0:02:04]} Nxd5 {[%emt 0:01:11]} 16. Nc4 {[%emt 0:01:39]} f6 {[%emt 0:11:02]} 17. h4 {[%emt 0:03:37]} Bc8 {[%emt 0:10:58]} 18. Nh2 $15 {[%emt 0:19:27]} Bf8 19. h5 {[%emt 0:03:35]} Be6 {[%emt 0:10:44]} 20. Ng4 {[%emt 0:02:03]} b5 {[%emt 0:05:12]} 21. Nd2 {[%emt 0:01:24]} f5 {[%emt 0:00:29]} 22. e4 {[%emt 0:03:13]} Nf4 {[%emt 0:08:26]} 23. Nh6+ {[%emt 0:06:11]} gxh6 {[%emt 0:02:17]} 24. gxf4 {[%emt 0:00:08]} Nd4 {[%emt 0:01:55]} 25. Bxd4 {[%emt 0:00:58]} exd4 {[%emt 0:00:08]} 26. e5 {[%emt 0:02:11]} Rd7 {[%emt 0:01:07]} 27. Kh2 {[%emt 0:01:58]} Rg7 {[%emt 0:02:59]} 28. Rg1 {[%emt 0:03:28]} Qd8 {[%emt 0:00:39]} 29. Bh3 {[%emt 0:00:11]} Ree7 {[%emt 0:01:04]} 30. Rg3 {[%emt 0:05:10]} Ref7 {[%emt 0:00:46]} 31. Ne4 {[%emt 0:02:52]} fxe4 {[%emt 0:00:34]} 32. Bxe6 {[%emt 0:00:08]} Qh4+ {[%emt 0:00:03]} 33. Kg2 {[%emt 0:00:24]} Qxf4 {[%emt 0:00:15]} 34. Re1 {[%emt 0:02:37]} Qxe5 {[%emt 0:01:02]} 35. Bxf7+ {[%emt 0:04:25]} Kxf7 {[%emt 0:00:04]} 36. Qxe4 {[%emt 0:00:07]} Rxg3+ {[%emt 0:00:05]} 37. fxg3 {[%emt 0:00:06]} Qxe4+ {[%emt 0:00:03]} 38. Rxe4 {[%emt 0:00:09]} Be7 {[%emt 0:00:52]} 39. Kf3 {[%emt 0:00:49]} a5 {[%emt 0:00:49]} 40. a4 {[%emt 0:00:00]} bxa4 {[%emt 0:00:00]} 41. bxa4 {[%emt 0:00:00]} Bd6 {[%emt 0:00:00]} 42. Re2 {[%emt 0:00:00]} Bc7 {[%emt 0:00:00]} 43. g4 {[%emt 0:00:00]} 1-0

[Event "47th GRE-chT 2019"]
[Site "Patra"]
[Date "2019.07.03"]
[Round "2.13"]
[White "Malikentzos, Sotirios"]
[Black "Naoum, Spyridon"]
[Result "1-0"]
[ECO "A05"]
[WhiteElo "2428"]
[BlackElo "2299"]
[Annotator "NA"]
[PlyCount "84"]
[EventDate "2019.07.02"]
[EventCountry "GRE"]
[SourceTitle "playchess.com"]
[Source "ChessBase"]
[SourceQuality "1"]
[TimeControl "5400+30"]

1. Nf3 {[%emt 0:00:00]} Nf6 {[%emt 0:04:48]} 2. g3 {[%emt 0:00:00]} g6 {[%emt 0:00:05]} 3. b3 {[%emt 0:00:00]} d5 {[%emt 0:00:34]} 4. Bb2 {[%emt 0:00:14]} c5 {[%emt 0:01:31]} 5. c4 {[%emt 0:00:44]} d4 {[%emt 0:00:08]} 6. b4 {[%emt 0:00:11]} Bg7 {[%emt 0:01:32]} 7. Bg2 {[%emt 0:00:29]} O-O {[%emt 0:00:07]} 8. O-O {[%emt 0:02:11]} Re8 {[%emt 0:01:07] A05: Réti Opening: 1 Nf3 Nf6} 9. d3 {[%emt 0:02:07]} e5 {[%emt 0:01:23]} 10. bxc5 {[%emt 0:00:14]} Nfd7 {[%emt 0:06:17]} 11. Nfd2 {[%emt 0:03:07]} Nxc5 {[%emt 0:00:53]} 12. Ba3 {[%emt 0:00:21]} Nba6 {[%emt 0:04:46]} 13. Ne4 {[%emt 0:00:40] [#]} Nxe4 $146 {[%emt 0:11:39]} ({Predecessor:} 13... Bf8 14. Nxc5 Bxc5 15. Bxc5 Nxc5 16. Nd2 {½-½ (23) Zaragatski,I (2474)-Stellwagen,D (2625) Germany 2012}) 14. Bxe4 {[%emt 0:00:07]} Rb8 {[%emt 0:14:09]} 15. Nd2 {[%emt 0:01:59]} Qc7 {[%emt 0:10:43]} 16. Rb1 {[%emt 0:03:35]} f5 {[%emt 0:02:37]} 17. Bd5+ {[%emt 0:08:55]} Kh8 $1 {[%emt 0:00:13]} 18. Qb3 {[%emt 0:07:37]} Bd7 {[%emt 0:01:36]} 19. Rfc1 {[%emt 0:07:09]} Bh6 {[%emt 0:06:59]} 20. Rc2 $11 {[%emt 0:17:06]} Nc5 {[%emt 0:00:25]} 21. Bxc5 {[%emt 0:00:40]} Qxc5 {[%emt 0:00:06]} 22. Qb4 {[%emt 0:02:49]} b6 {[%emt 0:04:50]} 23. Qxc5 {[%emt 0:07:08]} bxc5 {[%emt 0:00:04]} 24. Nb3 {[%emt 0:00:06]} Rb6 {[%emt 0:02:02]} 25. Ra1 {[%emt 0:03:19]} Ba4 {[%emt 0:04:14]} 26. Rb2 {[%emt 0:00:17]} Reb8 {[%emt 0:04:06]} 27. Rbb1 {[%emt 0:00:21]} Bf8 {[%emt 0:07:08]} 28. Re1 {[%emt 0:01:23]} Kg7 {[%emt 0:01:32]} 29. e3 {[%emt 0:02:49]} dxe3 {[%emt 0:00:57]} 30. Rxe3 {[%emt 0:01:34]} Kf6 {[%emt 0:01:30]} 31. Kg2 {[%emt 0:02:04]} Bd6 {[%emt 0:01:22]} 32. h4 {[%emt 0:00:42]} Bd7 {[%emt 0:01:11]} 33. Rae1 {[%emt 0:01:31]} Ra6 {[%emt 0:01:13]} 34. R3e2 {[%emt 0:02:28]} Ba4 {[%emt 0:06:26]} 35. f4 {[%emt 0:03:50]} Bxb3 {[%emt 0:00:00]} 36. fxe5+ {[%emt 0:00:16]} Bxe5 {[%emt 0:00:00]} 37. Rxe5 {[%emt 0:03:58]} Rxa2+ {[%emt 0:00:00]} 38. Kh3 {[%emt 0:00:25]} Rb6 {[%emt 0:00:00]} 39. Re8 {[%emt 0:00:19]} Ba4 {[%emt 0:00:40]} 40. Rf8+ {[%emt 0:00:00]} Kg7 {[%emt 0:00:00]} 41. Rf7+ {[%emt 0:00:00]} Kh6 {[%emt 0:00:00]} 42. Ree7 {[%emt 0:00:00]} g5 {[%emt 0:00:00]} 1-0

[Event "47th GRE-chT 2019"]
[Site "Patra"]
[Date "2019.07.03"]
[Round "2.13"]
[White "Fragkos, Vasilios"]
[Black "Souleidis, Georgios"]
[Result "0-1"]
[ECO "A45"]
[WhiteElo "2044"]
[BlackElo "2426"]
[Annotator "NA"]
[PlyCount "86"]
[EventDate "2019.07.02"]
[EventCountry "GRE"]
[SourceTitle "playchess.com"]
[Source "ChessBase"]
[SourceQuality "1"]
[TimeControl "5400+30"]

1. d4 {[%emt 0:00:00]} Nf6 {[%emt 0:00:00]} 2. Bg5 {[%emt 0:00:01]} e6 {[%emt 0:00:00]} 3. Nd2 {[%emt 0:01:07]} c5 {[%emt 0:00:34]} 4. e3 {[%emt 0:02:41]} d5 {[%emt 0:02:37]} 5. c3 {[%emt 0:00:40]} h6 {[%emt 0:00:23]} 6. Bh4 {[%emt 0:00:32]} Nbd7 {[%emt 0:02:07]} 7. f4 {[%emt 0:15:09]} cxd4 {[%emt 0:00:22]} 8. cxd4 {[%emt 0:00:18]} Qb6 {[%emt 0:03:09]} 9. Qb3 {[%emt 0:24:02]} Bb4 {[%emt 0:02:51]} 10. Bxf6 {[%emt 0:09:24]} Nxf6 {[%emt 0:00:29]} 11. Ngf3 {[%emt 0:03:04]} Bd7 {[%emt 0:22:27]} 12. a3 {[%emt 0:05:15]} Bxd2+ {[%emt 0:01:29]} 13. Nxd2 {[%emt 0:00:07]} Qa5 {[%emt 0:11:03]} 14. Bd3 {[%emt 0:08:55]} O-O {[%emt 0:02:23]} 15. Ke2 $11 {[%emt 0:01:23]} Bc6 {[%emt 0:08:08]} 16. Rac1 {[%emt 0:04:15]} Ne4 {[%emt 0:12:50]} 17. Nf3 {[%emt 0:10:03]} Rfc8 {[%emt 0:02:52]} 18. Qb4 {[%emt 0:03:11]} Qxb4 {[%emt 0:06:49]} 19. axb4 {[%emt 0:00:03]} Nd6 {[%emt 0:00:11]} 20. b3 {[%emt 0:05:52]} f6 {[%emt 0:00:24]} 21. Rc5 {[%emt 0:00:40]} Kf7 {[%emt 0:03:13]} 22. Rhc1 {[%emt 0:00:14]} Ke7 {[%emt 0:00:47]} 23. Ra5 {[%emt 0:01:06]} a6 {[%emt 0:03:18]} 24. Kd2 {[%emt 0:01:28]} Kd7 {[%emt 0:02:32]} 25. Raa1 {[%emt 0:00:30]} Bb5 {[%emt 0:02:44]} 26. g4 {[%emt 0:01:54]} Bxd3 {[%emt 0:03:17]} 27. Kxd3 {[%emt 0:00:03]} Ne4 {[%emt 0:01:14]} 28. Nd2 {[%emt 0:00:37]} Nd6 {[%emt 0:02:34]} 29. Nf3 {[%emt 0:00:09]} Rxc1 {[%emt 0:00:14]} 30. Rxc1 {[%emt 0:00:01]} Rc8 {[%emt 0:01:42]} 31. Rxc8 {[%emt 0:00:21]} Kxc8 {[%emt 0:00:01]} 32. g5 {[%emt 0:00:54]} Kd7 {[%emt 0:00:03]} 33. gxh6 {[%emt 0:00:42]} gxh6 {[%emt 0:00:01]} 34. Nd2 {[%emt 0:00:36]} Kc6 {[%emt 0:00:23]} 35. e4 {[%emt 0:00:38]} dxe4+ {[%emt 0:02:49]} 36. Nxe4 {[%emt 0:00:04]} Ne8 {[%emt 0:01:13]} 37. Nc3 {[%emt 0:01:04]} f5 38. Ke3 {[%emt 0:01:21]} Nf6 {[%emt 0:00:45]} 39. h3 {[%emt 0:00:33]} Nd5+ {[%emt 0:00:45]} 40. Nxd5 {[%emt 0:00:00]} exd5 {[%emt 0:00:00]} 41. Kd3 {[%emt 0:00:00]} Kb5 {[%emt 0:00:00]} 42. Kc3 {[%emt 0:00:00]} h5 {[%emt 0:00:00]} 43. h4 {[%emt 0:00:00]} b6 {[%emt 0:00:00]} 0-1